bitfinex/quotes_BTCUSD_20251113
["timestamp","ask_amount","ask_price","bid_price","bid_amount"]
[1763049357451,0.30848794,101480.0,101470.0,0.001]
[1763049357860,0.0695,101480.0,101470.0,0.19810259]
[1763049358103,0.52006462,101490.0,101480.0,0.19708316]
[1763049358312,0.19708316,101480.0,101470.0,0.24556259]
[1763049358523,0.24561316,101480.0,101460.0,0.20697759]
[1763049358719,0.26561316,101480.0,101460.0,0.20697759]
[1763049359401,0.26561316,101480.0,101450.0,0.19714017]
[1763049359402,0.24516259,101470.0,101450.0,0.19714017]
[1763049359635,0.24516259,101470.0,101460.0,0.19712201]
[1763049359877,0.31748652,101480.0,101460.0,0.19712201]
[1763049360087,0.2173331,101480.0,101470.0,0.19710259]
[1763049360303,0.05080994,101480.0,101470.0,0.19710259]
[1763049360504,0.00124994,101480.0,101470.0,0.35312259]
[1763049360739,0.00124994,101480.0,101470.0,0.41299005]
[1763049361787,0.00124994,101480.0,101470.0,0.41399005]
[1763049361991,0.00124994,101480.0,101470.0,1.0503188]
[1763049362199,0.00124994,101480.0,101470.0,1.3723188]
[1763049362436,0.00024994,101480.0,101470.0,0.73599005]
[1763049363018,0.00024994,101480.0,101470.0,1.3723188]
[1763049363987,0.00024994,101480.0,101470.0,1.3743188]
[1763049364612,0.00024994,101480.0,101470.0,1.41773754]
[1763049364818,0.00024994,101480.0,101470.0,1.42755479]
[1763049365035,1e-08,101480.0,101470.0,1.41773754]
[1763049365237,0.01434,101530.0,101520.0,0.19700551]
[1763049365238,0.21132748,101530.0,101520.0,0.19700551]
[1763049365484,0.21132748,101530.0,101520.0,0.23640716]
[1763049365485,0.02325497,101530.0,101520.0,0.23640716]
[1763049365643,0.01434,101530.0,101520.0,0.23640716]
[1763049366097,0.21132611,101530.0,101520.0,0.03940165]
[1763049366471,0.19700551,101520.0,101510.0,0.19702492]
[1763049366674,0.21700551,101520.0,101510.0,0.19702492]
[1763049366901,0.53432798,101530.0,101510.0,0.36231492]
[1763049367055,0.54325217,101530.0,101520.0,0.19700551]
[1763049367242,0.04213197,101530.0,101520.0,0.26275551]
[1763049367448,0.02326419,101530.0,101520.0,0.31868755]
[1763049367654,0.2202503,101530.0,101520.0,0.12168204]
[1763049367866,0.2202503,101530.0,101520.0,0.25293755]
[1763049368068,0.2212503,101530.0,101520.0,0.05593204]
[1763049368312,0.2217403,101530.0,101520.0,0.05593204]
[1763049368508,0.02426419,101530.0,101520.0,0.19700551]
[1763049368706,0.2202503,101530.0,101520.0,0.19700551]
[1763049368912,0.2202503,101530.0,101520.0,0.36229551]
[1763049368913,0.00892419,101530.0,101520.0,0.36229551]
[1763049369114,0.00892419,101530.0,101520.0,0.26275551]
[1763049369531,0.01092419,101530.0,101520.0,0.36229551]
[1763049370061,0.001,101530.0,101520.0,0.36229551]
[1763049370278,0.00996016,101530.0,101520.0,0.39885551]
[1763049370484,0.20694627,101530.0,101520.0,0.19700551]
[1763049370619,0.00996016,101530.0,101520.0,0.25132055]
[1763049370858,0.01020918,101530.0,101520.0,0.31707055]
[1763049371190,0.01020918,101530.0,101520.0,0.41761055]
[1763049371420,0.02815308,101530.0,101520.0,0.001]
[1763049371731,0.27463584,101530.0,101520.0,0.001]
[1763049371946,0.29512584,101530.0,101520.0,0.001]
[1763049372602,0.19700551,101520.0,101510.0,0.24660466]
[1763049372835,0.22390622,101520.0,101510.0,0.24660466]
[1763049373036,0.22390622,101520.0,101510.0,0.04958]
[1763049373255,0.22390622,101520.0,101510.0,0.24660492]
[1763049373423,0.02690071,101520.0,101510.0,0.95628435]
[1763049373628,0.02690071,101520.0,101510.0,0.77414913]
[1763049373806,0.02690071,101520.0,101510.0,0.35160913]
[1763049374007,0.02690071,101520.0,101500.0,0.84809735]
[1763049374008,0.22490622,101520.0,101500.0,0.34296213]
[1763049374209,0.02790071,101520.0,101510.0,0.19702492]
[1763049374416,0.22490622,101520.0,101510.0,0.19702492]
[1763049374629,0.19702492,101510.0,101500.0,0.24342213]
[1763049374982,0.77954144,101520.0,101500.0,0.24342213]
[1763049374983,0.26750551,101520.0,101510.0,0.002]
[1763049375194,0.847628,101520.0,101510.0,0.002]
[1763049375406,0.19704433,101500.0,101490.0,0.25644705]
[1763049375603,0.02731,101510.0,101500.0,0.19704433]
[1763049375756,0.05432033,101510.0,101500.0,0.26379433]
[1763049376097,0.05481033,101510.0,101500.0,0.001]
[1763049376232,0.07432033,101510.0,101500.0,0.19804433]
[1763049376447,0.02701033,101510.0,101500.0,0.96140757]
[1763049376908,0.02701033,101510.0,101500.0,0.45527235]
[1763049377122,0.21698611,101530.0,101520.0,0.52000551]
[1763049377332,0.19700551,101520.0,101510.0,0.323]
[1763049377545,0.19703929,101510.0,101500.0,0.323]
[1763049377764,0.25938929,101510.0,101500.0,0.323]
[1763049377963,0.25938929,101510.0,101500.0,0.324]
[1763049378192,0.78527407,101510.0,101500.0,0.001]
[1763049378392,0.37862221,101510.0,101500.0,0.001]
[1763049378803,0.28013885,101510.0,101500.0,0.001]
[1763049379223,0.78827407,101510.0,101500.0,0.001]
[1763049379644,2.78527407,101510.0,101500.0,0.001]
[1763049380132,2.78827407,101510.0,101500.0,0.001]
[1763049380386,0.21706375,101490.0,101480.0,0.2069351]
[1763049380605,0.02,101490.0,101480.0,0.19708316]
[1763049380845,0.26632982,101490.0,101470.0,0.25653771]
[1763049381072,0.0475599,101490.0,101480.0,0.19708316]
[1763049381297,0.0275599,101490.0,101480.0,0.36237316]
[1763049381541,0.0275599,101490.0,101480.0,0.26283316]
[1763049381969,0.0275599,101490.0,101480.0,0.36237316]
[1763049382188,0.0275599,101490.0,101480.0,0.86750838]
[1763049382189,0.0012499,101490.0,101480.0,0.86750838]
[1763049382421,0.0012499,101490.0,101480.0,0.96599174]
[1763049382647,0.0022499,101490.0,101480.0,0.96599174]
[1763049382880,0.0012499,101490.0,101480.0,0.96599174]
[1763049383132,0.0012499,101490.0,101480.0,1.79412696]
[1763049383613,0.0002499,101490.0,101480.0,1.8375457]
[1763049383861,0.0002499,101490.0,101480.0,1.8385457]
[1763049384542,0.0002499,101490.0,101480.0,1.8375457]
[1763049384754,0.0002499,101490.0,101480.0,1.8395457]
[1763049385387,0.0002499,101490.0,101480.0,1.79612696]
[1763049385594,0.0002499,101490.0,101480.0,1.29299174]
[1763049386896,0.0002499,101490.0,101480.0,0.86750838]
[1763049387105,0.0002499,101490.0,101480.0,0.70521838]
[1763049387315,0.0002499,101490.0,101480.0,0.77096838]
[1763049387931,0.19731365,101490.0,101480.0,0.26583316]
[1763049388139,0.21731365,101490.0,101480.0,0.003]
[1763049388705,0.25874962,101490.0,101480.0,0.003]
[1763049388863,0.76388484,101490.0,101480.0,0.003]
[1763049389078,0.30382886,101490.0,101480.0,0.003]
[1763049389629,0.19710259,101470.0,101450.0,0.71204789]
[1763049389758,0.19712201,101460.0,101450.0,0.20691267]
[1763049389960,0.02704924,101460.0,101440.0,0.76160939]
[1763049390151,0.02704924,101460.0,101450.0,0.85964666]
[1763049390842,0.02704924,101460.0,101450.0,0.86064666]
[1763049391185,0.02704924,101460.0,101450.0,0.85964666]
[1763049391587,0.02704924,101460.0,101450.0,0.86164666]
[1763049392462,0.02704924,101460.0,101450.0,0.35651144]
[1763049392633,0.02704924,101460.0,101450.0,0.86164666]
[1763049392850,0.02704924,101460.0,101450.0,0.35751144]
[1763049393052,0.02704924,101460.0,101450.0,0.86264666]
[1763049393442,0.02704924,101460.0,101450.0,0.26377144]
[1763049394233,0.02704924,101460.0,101450.0,0.20014144]
[1763049394477,0.22417125,101460.0,101450.0,0.20014144]
[1763049394885,0.02704924,101460.0,101450.0,0.20014144]
[1763049395090,0.02704924,101460.0,101450.0,1.00907002]
[1763049396027,0.00901641,101460.0,101450.0,1.00907002]
[1763049396232,0.00901641,101460.0,101450.0,1.00707002]
[1763049396604,0.00901641,101460.0,101450.0,1.00807002]
[1763049397028,0.3648999,101490.0,101470.0,0.19710259]
[1763049397029,0.3848999,101490.0,101470.0,0.19710259]
[1763049397231,0.39189388,101490.0,101470.0,0.19710259]
[1763049397434,0.02,101480.0,101470.0,0.19710259]
[1763049397634,0.04699398,101480.0,101470.0,0.19710259]
[1763049398001,0.05526398,101480.0,101470.0,0.19710259]
[1763049398202,0.04699398,101480.0,101470.0,0.24504259]
[1763049398404,0.02699398,101480.0,101470.0,0.40241259]
[1763049399268,0.00899799,101480.0,101470.0,0.30867259]
[1763049399510,0.02799385,101480.0,101470.0,0.24504259]
[1763049399694,0.02699385,101480.0,101470.0,0.24504259]
[1763049399873,0.72921223,101480.0,101460.0,0.20696088]
[1763049400079,0.02,101470.0,101460.0,0.20696088]
[1763049400432,0.21710259,101470.0,101460.0,0.20696088]
[1763049400593,0.02,101470.0,101460.0,0.20696088]
[1763049400799,0.21710259,101470.0,101460.0,0.20696088]
[1763049401400,0.02,101470.0,101460.0,0.20696088]
[1763049401610,0.72521957,101480.0,101460.0,0.20696088]
[1763049401816,0.19710259,101470.0,101460.0,0.20696088]
[1763049401989,0.19710259,101470.0,101450.0,0.25493851]
[1763049402191,0.021,101470.0,101460.0,0.19712201]
[1763049402392,0.02,101470.0,101460.0,0.19712201]
[1763049402593,0.21710259,101470.0,101460.0,0.19712201]
[1763049402800,0.31658595,101470.0,101460.0,0.19712201]
[1763049403203,0.21810259,101470.0,101460.0,0.19712201]
[1763049403414,0.21910259,101470.0,101460.0,0.19712201]
[1763049403610,0.19714144,101450.0,101440.0,0.1971604]
[1763049403819,0.19716088,101440.0,101420.0,0.30072678]
[1763049404024,0.24445144,101450.0,101430.0,0.19717906]
[1763049404222,0.14296648,101450.0,101440.0,0.19716088]
[1763049404447,0.34010792,101450.0,101440.0,0.19716088]
[1763049405084,0.24445144,101450.0,101430.0,0.24511906]
[1763049405417,0.21716088,101440.0,101430.0,0.19718032]
[1763049405590,0.02,101440.0,101430.0,0.19718032]
[1763049405795,0.21716088,101440.0,101430.0,0.19718032]
[1763049406429,0.02,101440.0,101430.0,0.24512032]
[1763049406612,0.021,101440.0,101430.0,0.24512032]
[1763049407066,0.022,101440.0,101430.0,0.24512032]
[1763049407285,0.002,101440.0,101430.0,0.40249032]
[1763049407490,0.002,101440.0,101430.0,0.24512032]
[1763049407907,0.002,101440.0,101430.0,0.30875032]
[1763049408083,0.002,101440.0,101430.0,0.24512032]
[1763049408468,0.19718032,101430.0,101420.0,0.20698678]
[1763049408670,0.21916088,101440.0,101420.0,0.20698678]
[1763049408832,0.29502137,101440.0,101420.0,0.19719976]
[1763049409031,0.10786049,101440.0,101430.0,0.19718032]
[1763049409234,0.001,101440.0,101430.0,0.19718032]
[1763049409475,0.021,101440.0,101430.0,0.24512032]
[1763049409710,0.02,101440.0,101430.0,0.24512032]
[1763049410131,0.02,101440.0,101430.0,0.19718032]
[1763049410132,0.21816088,101440.0,101430.0,0.19718032]
[1763049410343,0.21716088,101440.0,101430.0,0.19718032]
[1763049410545,0.21816088,101440.0,101430.0,0.19718032]
[1763049411495,0.021,101440.0,101430.0,0.19718032]
[1763049411699,0.022,101440.0,101430.0,0.24512032]
[1763049411910,0.002,101440.0,101430.0,0.40723368]
[1763049412114,0.002,101440.0,101430.0,0.40249032]
[1763049412919,0.002,101440.0,101430.0,0.30875032]
[1763049413130,0.002,101440.0,101430.0,0.40249032]
[1763049413559,0.002,101440.0,101430.0,0.90762554]
[1763049413709,0.002,101440.0,101430.0,1.0061089]
[1763049413905,0.002,101440.0,101430.0,0.90762554]
[1763049414354,0.24866088,101440.0,101410.0,0.35032886]
[1763049414554,0.24866088,101440.0,101420.0,0.19719976]
[1763049414555,0.20767103,101430.0,101420.0,0.19719976]
[1763049415125,0.20767103,101430.0,101410.0,0.25658886]
[1763049415327,0.25325522,101430.0,101420.0,0.19719976]
[1763049415802,0.19719976,101420.0,101410.0,0.2467992]
[1763049416007,0.30177522,101430.0,101410.0,0.2467992]
[1763049416415,0.19719976,101420.0,101410.0,0.2467992]
[1763049417363,0.2172192,101410.0,101400.0,0.2094238]
[1763049417575,0.40527562,101410.0,101400.0,0.00241558]
[1763049417786,0.40576562,101410.0,101400.0,0.00241558]
[1763049417992,0.91090084,101410.0,101400.0,0.00241558]
[1763049418207,1.29528876,101410.0,101400.0,0.00241558]
[1763049418425,3.29528876,101410.0,101400.0,0.00241558]
[1763049419218,3.29728876,101410.0,101400.0,0.00241558]
[1763049419431,3.29828876,101410.0,101400.0,0.00241558]
[1763049419635,3.32792542,101410.0,101400.0,0.00241558]
[1763049422011,3.30995624,101410.0,101400.0,0.00241558]
[1763049422222,3.32787753,101410.0,101400.0,0.00241558]
[1763049422419,3.32787753,101410.0,101370.0,0.0004]
[1763049422420,0.19727756,101380.0,101370.0,0.0004]
[1763049422633,0.19727756,101380.0,101370.0,0.24569703]
[1763049422634,0.02,101380.0,101370.0,0.24569703]
[1763049422874,0.01,101390.0,101380.0,0.19727756]
[1763049423090,0.323,101400.0,101390.0,0.19725811]
[1763049423284,0.2618692,101410.0,101390.0,0.40374811]
[1763049423489,0.19723865,101400.0,101380.0,0.30006143]
[1763049423718,0.21725811,101390.0,101380.0,0.19727756]
[1763049423892,0.02,101390.0,101380.0,0.19727756]
[1763049424295,0.77138489,101400.0,101380.0,0.19727756]
[1763049424441,0.2841425,101400.0,101380.0,0.19727756]
[1763049424855,0.78927772,101400.0,101390.0,0.19725811]
[1763049425078,0.2841425,101400.0,101390.0,0.19725811]
[1763049425313,0.2361125,101400.0,101390.0,0.19725811]
[1763049425466,0.03789283,101400.0,101390.0,0.24361811]
[1763049425675,0.23513148,101400.0,101390.0,0.24361811]
[1763049425872,0.05448317,101400.0,101390.0,0.24361811]
[1763049426074,0.21613148,101400.0,101390.0,0.04636]
[1763049426258,0.21513148,101400.0,101390.0,0.04636]
[1763049426681,0.21513148,101400.0,101370.0,0.19769703]
[1763049426682,0.19727756,101380.0,101370.0,0.19769703]
[1763049426875,0.74078633,101380.0,101370.0,0.0004]
[1763049427084,0.88685672,101380.0,101370.0,0.0004]
[1763049427574,0.3817215,101380.0,101370.0,0.0004]
[1763049427758,0.78979633,101380.0,101370.0,0.0004]
[1763049428084,0.23516111,101380.0,101370.0,0.24405703]
[1763049428286,0.21614111,101380.0,101370.0,0.19869703]
[1763049428559,0.31562447,101380.0,101370.0,0.0014]
[1763049428802,0.38415447,101380.0,101370.0,0.0014]
[1763049428952,3.26560936,101380.0,101370.0,0.0014]
[1763049429154,1.25570843,101380.0,101370.0,0.0014]
[1763049430139,0.55916111,101380.0,101370.0,0.0014]
[1763049430316,1.11379633,101380.0,101370.0,0.0014]
[1763049430555,1.12366271,101380.0,101370.0,0.0014]
[1763049430679,0.66193644,101380.0,101370.0,0.0004]
[1763049430889,1.16707166,101380.0,101370.0,0.0004]
[1763049431089,1.2112699,101380.0,101370.0,0.0004]
[1763049431442,1.2122699,101380.0,101370.0,0.0004]
[1763049431674,1.2122699,101380.0,101370.0,0.19769703]
[1763049431858,0.36187376,101380.0,101370.0,0.19769703]
[1763049432061,0.01887376,101380.0,101370.0,0.19769703]
[1763049432305,0.01887376,101380.0,101370.0,0.0004]
[1763049432306,3.11379654,101380.0,101370.0,0.0004]
[1763049432505,3.25569864,101380.0,101370.0,0.0004]
[1763049432937,3.25569864,101380.0,101350.0,0.0004]
[1763049432938,0.56373523,101360.0,101350.0,0.0004]
[1763049433141,3.23910481,101360.0,101350.0,0.0004]
[1763049433347,3.31533481,101360.0,101350.0,0.00165183]
[1763049433999,0.67783899,101360.0,101350.0,0.00165183]
[1763049434205,1.34498562,101360.0,101350.0,0.00165183]
[1763049434415,1.27191607,101360.0,101350.0,0.19898779]
[1763049434608,1.27191607,101360.0,101350.0,0.00165183]
[1763049434994,1.27391607,101360.0,101350.0,0.00165183]
[1763049435404,1.27491607,101360.0,101350.0,0.00165183]
[1763049436143,1.24827607,101360.0,101350.0,0.00165183]
[1763049436347,1.20695607,101360.0,101350.0,0.00165183]
[1763049436466,1.34675943,101360.0,101350.0,0.00165183]
[1763049436665,1.24827607,101360.0,101350.0,0.00165183]
[1763049436873,1.20695607,101360.0,101350.0,0.00165183]
[1763049437068,1.24827607,101360.0,101350.0,0.00165183]
[1763049438513,1.29169481,101360.0,101350.0,0.00165183]
[1763049439429,0.65419899,101360.0,101350.0,0.00165183]
[1763049439639,1.24827607,101360.0,101350.0,0.00165183]
[1763049441393,0.61078025,101360.0,101350.0,0.00165183]
[1763049441568,1.24827607,101360.0,101350.0,0.00165183]
[1763049442759,1.29169481,101360.0,101350.0,0.00165183]
[1763049442968,3.29169481,101360.0,101350.0,0.00165183]
[1763049444827,0.56946025,101360.0,101350.0,0.00165183]
[1763049445053,0.54119025,101360.0,101350.0,0.05029183]
[1763049445259,0.56119025,101360.0,101350.0,0.05029183]
[1763049445462,1.34675943,101360.0,101350.0,0.00165183]
[1763049445678,3.39017817,101360.0,101350.0,0.00165183]
[1763049446295,3.38917817,101360.0,101350.0,0.00165183]
[1763049446989,3.38717817,101360.0,101350.0,0.00165183]
[1763049447190,3.38817817,101360.0,101350.0,0.00165183]
[1763049447802,3.39017817,101360.0,101350.0,0.00165183]
[1763049449728,3.41982816,101360.0,101350.0,0.00165183]
[1763049449942,3.3213448,101360.0,101350.0,0.00165183]
[1763049451849,3.34198435,101360.0,101350.0,0.00165183]
[1763049454911,3.36701772,101360.0,101350.0,0.00165183]
[1763049456016,2.70448853,101360.0,101350.0,0.00165183]
[1763049456250,3.36701772,101360.0,101350.0,0.00165183]
[1763049456460,3.49137699,101360.0,101350.0,0.00165183]
[1763049457097,3.46550108,101360.0,101350.0,0.00165183]
[1763049457303,3.44046771,101360.0,101350.0,0.00165183]
[1763049457510,3.49137699,101360.0,101350.0,0.00165183]
[1763049458439,3.46634362,101360.0,101350.0,0.00165183]
[1763049461386,3.50083105,101360.0,101350.0,0.00165183]
[1763049461794,3.52586442,101360.0,101350.0,0.00165183]
[1763049463151,3.46634362,101360.0,101350.0,0.00165183]
[1763049463355,2.85388117,101360.0,101350.0,0.00165183]
[1763049463559,3.36786026,101360.0,101350.0,0.00165183]
[1763049465311,3.39289363,101360.0,101350.0,0.00165183]
[1763049466750,3.39289363,101360.0,101350.0,0.19898779]
[1763049466751,2.07011331,101360.0,101350.0,0.19898779]
[1763049466945,0.02087376,101360.0,101350.0,0.40469779]
[1763049467160,0.02087376,101360.0,101350.0,0.20736183]
[1763049467370,0.02087376,101360.0,101350.0,0.40469779]
[1763049468193,0.01987376,101360.0,101350.0,0.40469779]
[1763049468832,0.02039376,101360.0,101350.0,0.24769779]
[1763049469051,0.21771025,101360.0,101350.0,0.00165183]
[1763049469259,0.94557724,101360.0,101350.0,0.00165183]
[1763049469482,1.26857724,101360.0,101350.0,0.00165183]
[1763049469713,1.34636943,101360.0,101350.0,0.00165183]
[1763049469925,3.32797567,101360.0,101350.0,0.00165183]
[1763049470148,3.32897567,101360.0,101350.0,0.00165183]
[1763049470336,3.32797567,101360.0,101350.0,0.00165183]
[1763049470812,3.23149231,101360.0,101350.0,0.00165183]
[1763049471924,3.23249231,101360.0,101350.0,0.00165183]
[1763049474000,2.59499649,101360.0,101350.0,0.00165183]
[1763049474206,3.23249231,101360.0,101350.0,0.00165183]
[1763049475759,0.59499649,101360.0,101350.0,0.00165183]
[1763049476781,0.69347985,101360.0,101350.0,0.00165183]
[1763049476987,0.59499649,101360.0,101350.0,0.00165183]
[1763049477188,0.59499649,101360.0,101350.0,0.19898779]
[1763049477830,0.59399649,101360.0,101350.0,0.19898779]
[1763049478035,0.59199649,101360.0,101350.0,0.19898779]
[1763049478240,0.59199649,101360.0,101350.0,0.00165183]
[1763049478463,3.37239441,101360.0,101350.0,0.00165183]
[1763049479690,3.37139441,101360.0,101350.0,0.00165183]
[1763049480184,3.37339441,101360.0,101350.0,0.00165183]
[1763049481353,3.37439441,101360.0,101350.0,0.00165183]
[1763049481738,2.77555432,101360.0,101350.0,0.00165183]
[1763049481934,3.41304324,101360.0,101350.0,0.00165183]
[1763049482824,3.42304323,101360.0,101350.0,1e-08]
[1763049482985,3.4480766,101360.0,101350.0,1e-08]
[1763049483188,3.45807659,101360.0,101350.0,1e-08]
[1763049483681,3.45807659,101360.0,101330.0,1e-08]
[1763049483682,0.26077415,101340.0,101330.0,1e-08]
[1763049483888,4.06757798,101340.0,101330.0,1e-08]
[1763049484088,3.39939622,101340.0,101330.0,1e-08]
[1763049484297,3.41007687,101340.0,101330.0,1e-08]
[1763049484517,3.29159351,101340.0,101330.0,1e-08]
[1763049484723,3.29091287,101340.0,101330.0,1e-08]
[1763049485141,0.41264288,101340.0,101330.0,0.19737492]
[1763049485393,0.02,101350.0,101340.0,0.19735543]
[1763049485594,0.23528663,101350.0,101340.0,0.19735543]
[1763049485795,0.07168,101350.0,101340.0,0.19735543]
[1763049486008,0.59201596,101350.0,101340.0,0.19735543]
[1763049486216,0.19735543,101340.0,101330.0,0.19737492]
[1763049486429,3.32101461,101340.0,101330.0,1e-08]
[1763049486634,3.36443335,101340.0,101330.0,1e-08]
[1763049486839,3.36843335,101340.0,101330.0,1e-08]
[1763049487052,3.38238091,101340.0,101330.0,1e-08]
[1763049487481,0.74188509,101340.0,101330.0,1e-08]
[1763049487687,0.64540173,101340.0,101330.0,1e-08]
[1763049488064,0.60198299,101340.0,101330.0,1e-08]
[1763049488503,1.28290243,101340.0,101330.0,1e-08]
[1763049488709,1.28390243,101340.0,101330.0,1e-08]
[1763049488891,1.38238579,101340.0,101330.0,1e-08]
[1763049489243,1.38238579,101340.0,101330.0,0.00050097]
[1763049489443,0.57845417,101340.0,101330.0,0.00050097]
[1763049489838,0.336,101340.0,101330.0,0.30254588]
[1763049490045,0.003,101340.0,101330.0,0.38953588]
[1763049490273,0.003,101340.0,101330.0,1.0270317]
[1763049491096,0.25103543,101340.0,101330.0,0.00030097]
[1763049491476,0.90853125,101340.0,101330.0,0.00030097]
[1763049491673,0.95194999,101340.0,101330.0,0.00030097]
[1763049491883,1.27494999,101340.0,101330.0,0.00030097]
[1763049492111,1.27294999,101340.0,101330.0,0.00030097]
[1763049492319,0.59203543,101340.0,101330.0,0.00030097]
[1763049492879,0.02965415,101350.0,101340.0,0.19735543]
[1763049493088,0.21731977,101360.0,101340.0,0.25516543]
[1763049493300,0.24218734,101360.0,101340.0,0.25516543]
[1763049493512,0.24218734,101360.0,101350.0,0.19733596]
[1763049493721,0.19731977,101360.0,101350.0,0.19733596]
[1763049494548,0.19931977,101360.0,101350.0,0.19733596]
[1763049494902,0.20031977,101360.0,101350.0,0.19733596]
[1763049495108,0.27199977,101360.0,101340.0,0.19735543]
[1763049495338,0.19733596,101350.0,101340.0,0.19735543]
[1763049495548,0.19735543,101340.0,101330.0,0.25410365]
[1763049495749,0.19735543,101340.0,101330.0,0.20724365]
[1763049496120,0.24903543,101340.0,101330.0,0.20724365]
[1763049496339,0.20918559,101360.0,101350.0,0.19733596]
[1763049496551,0.55018559,101360.0,101340.0,0.19735543]
[1763049496752,0.64866895,101360.0,101340.0,0.19735543]
[1763049496916,0.70034895,101360.0,101350.0,0.19733596]
[1763049497116,0.55018559,101360.0,101350.0,0.19733596]
[1763049497329,0.55118559,101360.0,101350.0,0.19733596]
[1763049497680,0.55018559,101360.0,101340.0,0.19735543]
[1763049497920,1.10886797,101360.0,101340.0,0.19735543]
[1763049498148,1.10986797,101360.0,101350.0,0.19733596]
[1763049498364,0.70134895,101360.0,101350.0,0.19733596]
[1763049498585,0.60186559,101360.0,101350.0,0.19733596]
[1763049498795,0.60486559,101360.0,101350.0,0.19733596]
[1763049498988,0.346,101360.0,101350.0,0.19733596]
[1763049499189,0.001,101360.0,101350.0,0.89619834]
[1763049499917,0.003,101360.0,101350.0,0.89619834]
[1763049500582,0.55014227,101380.0,101370.0,0.19729703]
[1763049500583,0.35941,101380.0,101370.0,0.19729703]
[1763049500788,0.21723865,101400.0,101390.0,0.19725708]
[1763049501016,0.0379521,101400.0,101390.0,0.19725708]
[1763049501221,0.0379521,101400.0,101380.0,0.84926233]
[1763049501222,0.76230192,101400.0,101370.0,0.14391485]
[1763049501433,0.76230192,101400.0,101350.0,0.43973611]
[1763049501434,0.19918756,101380.0,101350.0,0.43973611]
[1763049501638,0.01832,101360.0,101350.0,0.19733582]
[1763049502049,0.21563649,101360.0,101350.0,0.19733596]
[1763049502251,0.01832,101360.0,101350.0,0.19733596]
[1763049502662,0.01641,101360.0,101350.0,0.24419596]
[1763049502840,0.19731649,101360.0,101350.0,0.30200596]
[1763049503053,0.53670703,101370.0,101360.0,0.19731649]
[1763049503247,0.53861703,101370.0,101360.0,0.19731649]
[1763049503473,0.53670703,101370.0,101360.0,0.25512649]
[1763049503658,0.01,101400.0,101380.0,0.19726038]
[1763049503885,0.33710389,101410.0,101390.0,0.19725811]
[1763049504070,0.02,101400.0,101390.0,0.19725811]
[1763049504497,0.04165,101410.0,101400.0,0.19723865]
[1763049504837,0.04165,101410.0,101390.0,0.23676811]
[1763049505059,0.10999,101410.0,101400.0,0.19723865]
[1763049505671,0.3072092,101410.0,101400.0,0.19723865]
[1763049505872,0.04165,101410.0,101400.0,0.19723865]
[1763049506300,0.0223662,101420.0,101410.0,0.1972192]
[1763049506744,0.26278596,101420.0,101410.0,0.1972192]
[1763049507027,0.26259596,101420.0,101410.0,0.1972192]
[1763049507232,0.28701596,101420.0,101410.0,0.1972192]
[1763049507577,0.28801596,101420.0,101410.0,0.1972192]
[1763049507796,0.0908162,101420.0,101410.0,0.1982192]
[1763049508041,0.28801596,101420.0,101410.0,0.1982192]
[1763049508407,0.0662062,101420.0,101410.0,0.1982192]
[1763049508613,0.0462062,101420.0,101410.0,0.1982192]
[1763049508778,0.24340596,101420.0,101410.0,0.1982192]
[1763049508987,0.0462062,101420.0,101410.0,0.1982192]
[1763049509211,0.0033662,101420.0,101410.0,0.1982192]
[1763049509412,0.0033662,101420.0,101410.0,0.85022158]
[1763049509913,0.0033662,101420.0,101410.0,1.17322158]
[1763049510119,2.0,101460.0,101440.0,0.19714179]
[1763049510313,0.03107,101450.0,101430.0,0.20700575]
[1763049510681,0.20154088,101440.0,101420.0,0.24087271]
[1763049510792,0.00438,101440.0,101430.0,0.19718032]
[1763049510995,0.05107,101450.0,101440.0,0.19716088]
[1763049511197,0.03107,101450.0,101440.0,0.19716088]
[1763049512035,0.32176144,101450.0,101430.0,0.24098562]
[1763049512237,0.32176144,101450.0,101440.0,0.19716088]
[1763049512490,0.03107,101450.0,101440.0,0.19716088]
[1763049512801,0.03207,101450.0,101440.0,0.19716088]
[1763049513185,0.32276144,101450.0,101430.0,0.19718032]
[1763049513394,0.19716088,101440.0,101420.0,0.04371]
[1763049513604,0.19716088,101440.0,101420.0,0.19719976]
[1763049513605,0.23275032,101430.0,101420.0,0.19719976]
[1763049513807,0.32223032,101430.0,101420.0,0.19719976]
[1763049514018,0.23275032,101430.0,101420.0,0.19719976]
[1763049514225,0.03552,101430.0,101420.0,0.19719976]
[1763049514443,0.02,101440.0,101430.0,0.19718032]
[1763049514649,0.32192851,101450.0,101430.0,0.19718032]
[1763049514858,0.34192851,101450.0,101440.0,0.19716088]
[1763049515060,0.13493,101450.0,101440.0,0.19716088]
[1763049515236,0.33207144,101450.0,101440.0,0.19716088]
[1763049515434,0.33107144,101450.0,101440.0,0.19716088]
[1763049515665,0.33107144,101450.0,101430.0,0.29553433]
[1763049515666,0.33282166,101450.0,101430.0,0.29553433]
[1763049515835,0.27189144,101450.0,101440.0,0.19716088]
[1763049516273,0.33131144,101450.0,101440.0,0.19716088]
[1763049516593,0.33231144,101450.0,101430.0,0.19717871]
[1763049516723,0.19716088,101440.0,101430.0,0.19717871]
[1763049516954,0.19716088,101440.0,101430.0,0.19718032]
[1763049517159,0.30002088,101440.0,101420.0,0.71406212]
[1763049517357,0.02074,101430.0,101420.0,0.20705974]
[1763049517559,0.19716088,101440.0,101430.0,0.19718032]
[1763049518215,0.34192851,101450.0,101430.0,0.19718032]
[1763049518414,0.13393,101450.0,101440.0,0.19716088]
[1763049518833,0.33107144,101450.0,101440.0,0.19716088]
[1763049519183,0.22163144,101450.0,101430.0,0.80030171]
[1763049519444,0.22163144,101450.0,101440.0,0.19716088]
[1763049519445,0.31260158,101450.0,101440.0,0.19716088]
[1763049520201,0.11446,101450.0,101440.0,0.19716088]
[1763049520399,0.08527,101450.0,101440.0,0.19716088]
[1763049520599,0.001,101450.0,101440.0,0.34462114]
[1763049520825,0.001,101450.0,101440.0,0.93788352]
[1763049521038,0.001,101450.0,101440.0,0.43088114]
[1763049521246,0.001,101450.0,101440.0,0.79528352]
[1763049521459,0.001,101450.0,101440.0,0.74528352]
[1763049522044,0.28090302,101460.0,101450.0,0.19714144]
[1763049522212,0.08378,101460.0,101450.0,0.19714144]
[1763049522694,0.63619819,101470.0,101450.0,0.19714144]
[1763049522864,0.65619819,101470.0,101460.0,0.19712201]
[1763049523071,0.19712201,101460.0,101440.0,0.6640213]
[1763049523306,0.26090201,101460.0,101450.0,0.19714144]
[1763049523631,0.19714144,101450.0,101440.0,0.6640213]
[1763049523832,0.26092144,101450.0,101440.0,0.19716088]
[1763049524247,0.54112201,101460.0,101440.0,0.19716088]
[1763049524427,0.54112201,101460.0,101450.0,0.19714144]
[1763049524831,0.60550201,101460.0,101440.0,0.19716088]
[1763049525120,0.70298537,101460.0,101450.0,0.19714144]
[1763049525544,0.40738,101460.0,101450.0,0.19714144]